Workbook

Sheet JAN
A1: CLERK OF THE COURTS
A2: BREVARD COUNTY, FLORIDA
A3: ="Document Source Statistics January "&yr -> Document Source Statistics January 2018
A4: Number of Documents Filed by Case Category
A6: Case | B6: Category | D6: Total # of Documents Filed | E6: Documents Filed InCourt | F6: Documents Filed Informix | G6: Documents e-Filed | H6: Total Docs Auto-Docketed | I6: % of TOTAL InCourt | J6: % of TOTAL Informix | K6: % of TOTAL e-Filed | L6: Total % of Documents Auto Docketed
A7: AP | B7: APPEALS | D7: 56 | E7: 0 | F7: 0 | G7: 44 | H7: =SUM(G7) -> 44 | I7: =IF($D7>0,E7/$D7,0) -> 0 | J7: =IF($D7>0,F7/$D7,0) -> 0 | K7: =IF($D7>0,G7/$D7,0) -> 0.7857142857 | L7: =SUM(I7:K7) -> 0.7857142857
A8: CA | B8: CIRCUIT CIVIL | D8: 16019 | E8: 0 | F8: 1 | G8: 13426 | H8: 13426 | I8: =IF($D8>0,E8/$D8,0) -> 0 | J8: 6.242586928e-05 | K8: 0.838129721 | L8: =SUM(I8:K8) -> 0.8381921468
A9: SC | B9: COUNTY CIVIL SMALL CLAIMS | D9: 5162 | E9: 0 | F9: 0 | G9: 3994 | H9: 3994 | I9: 0 | J9: 0 | K9: 0.773731112 | L9: 0.773731112
A10: DR | B10: CIRCUIT CIVIL FAMILY | D10: 16306 | E10: 0 | F10: 0 | G10: 8761 | H10: 8761 | I10: 0 | J10: 0 | K10: 0.5372868883 | L10: 0.5372868883
A11: CP | B11: CIRCUIT CIVIL PROBATE | D11: 4476 | E11: 0 | F11: 0 | G11: 3838 | H11: 3838 | I11: 0 | J11: 0 | K11: 0.8574620197 | L11: 0.8574620197
A12: GA | B12: CIRCUIT CIVIL GUARDIANSHIP | D12: 1965 | E12: 0 | F12: 0 | G12: 1901 | H12: 1901 | I12: 0 | J12: 0 | K12: 0.9674300254 | L12: 0.9674300254
A13: MH | B13: CIRCUIT CIVIL MENTAL HEALTH | D13: 839 | E13: 0 | F13: 0 | G13: 565 | H13: 565 | I13: 0 | J13: 0 | K13: 0.673420739 | L13: 0.673420739
A14: CC | B14: COUNTY CIVIL | D14: 6316 | E14: 0 | F14: 0 | G14: 4137 | H14: 4137 | I14: 0 | J14: 0 | K14: 0.6550031666 | L14: 0.6550031666
A15: DP | B15: CIRCUIT JUVENILE DEPENDENCY | D15: 2317 | E15: 0 | F15: 0 | G15: 1838 | H15: 1838 | I15: 0 | J15: 0 | K15: 0.7932671558 | L15: 0.7932671558
A16: TOTAL OF CIVIL DOCUMENTS | D16: =SUM(D7:D15) -> 53456 | E16: 0 | F16: =SUM(F7:F15) -> 1 | G16: =SUM(G7:G15) -> 38504 | H16: 38504 | I16: =IF($D16>0,E16/$D16,0) -> 0 | J16: =IF($D16>0,F16/$D16,0) -> 1.870697396e-05 | K16: =IF($D16>0,G16/$D16,0) -> 0.7202933254 | L16: 0.7203120323
A17: .
A18: CJ | B18: CIRCUIT JUVENILE DELINQUENCY | D18: 6329 | E18: 3993 | F18: 7 | G18: 1242 | H18: 1242 | I18: =IF($D18>0,E18/$D18,0) -> 0.6309053563 | J18: =IF($D18>0,F18/$D18,0) -> 0.001106019908 | K18: =IF($D18>0,G18/$D18,0) -> 0.1962395323 | L18: 0.8282509085
A19: CF | B19: CIRCUIT CRIMINAL FELONY | D19: 33378 | E19: 10235 | F19: 505 | G19: 8390 | H19: 8390 | I19: 0.3066391036 | J19: 0.01512972617 | K19: 0.2513631733 | L19: 0.5731320031
A20: MM | B20: COUNTY CRIMINAL MISDEMEANOR | D20: 14758 | E20: 6692 | F20: 169 | G20: 2432 | H20: 2432 | I20: 0.4534489768 | J20: 0.01145141618 | K20: 0.1647919772 | L20: 0.6296923702
A21: CO | B21: COUNTY ORDINANCE | D21: 20 | E21: 11 | F21: 0 | G21: 4 | H21: 4 | I21: 0.55 | J21: 0 | K21: 0.2 | L21: 0.75
A22: MO | B22: COUNTY COURT MUNICIPAL ORDINANCE | D22: 102 | E22: 51 | F22: 4 | G22: 9 | H22: 9 | I22: 0.5 | J22: 0.03921568627 | K22: 0.08823529412 | L22: 0.6274509804
A23: IN | B23: COUNTY COURT INFRACTIONS | D23: 788 | E23: 55 | F23: 0 | G23: 3 | H23: 3 | I23: 0.06979695431 | J23: 0 | K23: 0.003807106599 | L23: 0.07360406091
A24: CT | B24: COUNTY CRIMINAL TRAFFIC | D24: 14200 | E24: 7602 | F24: 356 | G24: 1846 | H24: 1846 | I24: 0.5353521127 | J24: 0.02507042254 | K24: 0.13 | L24: 0.6904225352
A25: TOTAL OF CRIMINAL DOCUMENTS | D25: =SUM(D18:D24) -> 69575 | E25: =SUM(E18:E24) -> 28639 | F25: =SUM(F18:F24) -> 1041 | G25: =SUM(G18:G24) -> 13926 | H25: =SUM(E25:G25) -> 43606 | I25: =IF($D25>0,E25/$D25,0) -> 0.4116277398 | J25: 0.01496227093 | K25: 0.2001581028 | L25: =IF(G25>0,H25/$D25,0) -> 0.6267481135
A27: TR | B27: COUNTY CIVIL TRAFFIC | D27: 11537 | E27: 1393 | F27: 2955 | G27: 352 | H27: =SUM(E27:G27) -> 4700 | I27: =IF($D27>0,E27/$D27,0) -> 0.1207419606 | J27: =IF($D27>0,F27/$D27,0) -> 0.2561324434 | K27: 0.03051053133 | L27: 0.4073849354
A29: TOTAL ALL COURT DOCUMENTS | D29: =D16+D25+D27 -> 134568 | E29: =E16+E25+E27 -> 30032 | F29: =F16+F25+F27 -> 3997 | G29: =G16+G25+G27 -> 52782 | H29: =SUM(E29:G29) -> 86811 | I29: =IF($D29>0,E29/$D29,0) -> 0.2231734142 | J29: =IF($D29>0,F29/$D29,0) -> 0.02970245526 | K29: 0.3922329231 | L29: 0.6451087926

Sheet FEB
A1: CLERK OF THE COURTS
A2: BREVARD COUNTY, FLORIDA
A3: ="Document Source Statistics February "&yr -> Document Source Statistics February 2018
A4: Number of Documents Filed by Case Category
A6: Case | B6: Category | D6: Total # of Documents Filed | E6: Documents Filed InCourt | F6: Documents Filed Informix | G6: Documents e-Filed | H6: Total Docs Auto-Docketed | I6: % of TOTAL InCourt | J6: % of TOTAL Informix | K6: % of TOTAL e-Filed | L6: Total % of Documents Auto Docketed
A7: AP | B7: APPEALS | D7: 77 | E7: 0 | F7: 0 | G7: 65 | H7: =SUM(G7) -> 65 | I7: =IF($D7>0,E7/$D7,0) -> 0 | J7: =IF($D7>0,F7/$D7,0) -> 0 | K7: =IF($D7>0,G7/$D7,0) -> 0.8441558442 | L7: =SUM(I7:K7) -> 0.8441558442
A8: CA | B8: CIRCUIT CIVIL | D8: 15696 | E8: 0 | F8: 0 | G8: 13415 | H8: 13415 | I8: =IF($D8>0,E8/$D8,0) -> 0 | J8: 0 | K8: 0.8546763507 | L8: =SUM(I8:K8) -> 0.8546763507
A9: SC | B9: COUNTY CIVIL SMALL CLAIMS | D9: 3699 | E9: 0 | F9: 0 | G9: 2918 | H9: 2918 | I9: 0 | J9: 0 | K9: 0.7888618546 | L9: 0.7888618546
A10: DR | B10: CIRCUIT CIVIL FAMILY | D10: 15072 | E10: 0 | F10: 0 | G10: 7883 | H10: 7883 | I10: 0 | J10: 0 | K10: 0.5230228238 | L10: 0.5230228238
A11: CP | B11: CIRCUIT CIVIL PROBATE | D11: 4332 | E11: 0 | F11: 0 | G11: 3640 | H11: 3640 | I11: 0 | J11: 0 | K11: 0.8402585411 | L11: 0.8402585411
A12: GA | B12: CIRCUIT CIVIL GUARDIANSHIP | D12: 1768 | E12: 0 | F12: 0 | G12: 1717 | H12: 1717 | I12: 0 | J12: 0 | K12: 0.9711538462 | L12: 0.9711538462
A13: MH | B13: CIRCUIT CIVIL MENTAL HEALTH | D13: 747 | E13: 0 | F13: 0 | G13: 477 | H13: 477 | I13: 0 | J13: 0 | K13: 0.6385542169 | L13: 0.6385542169
A14: CC | B14: COUNTY CIVIL | D14: 4794 | E14: 0 | F14: 0 | G14: 3251 | H14: 3251 | I14: 0 | J14: 0 | K14: 0.6781393408 | L14: 0.6781393408
A15: DP | B15: CIRCUIT JUVENILE DEPENDENCY | D15: 2484 | E15: 0 | F15: 1 | G15: 1917 | H15: 1917 | I15: 0 | J15: 0.0004025764895 | K15: 0.7717391304 | L15: 0.7721417069
A16: TOTAL OF CIVIL DOCUMENTS | D16: =SUM(D7:D15) -> 48669 | E16: =SUM(E7:E15) -> 0 | F16: =SUM(F7:F15) -> 1 | G16: =SUM(G7:G15) -> 35283 | H16: 35283 | I16: =IF($D16>0,E16/$D16,0) -> 0 | J16: =IF($D16>0,F16/$D16,0) -> 2.054696008e-05 | K16: =IF($D16>0,G16/$D16,0) -> 0.7249583924 | L16: 0.7249789394
A17: .
A18: CJ | B18: CIRCUIT JUVENILE DELINQUENCY | D18: 6129 | E18: 3669 | F18: 1 | G18: 1372 | H18: 1372 | I18: =IF($D18>0,E18/$D18,0) -> 0.5986294665 | J18: 0.0001631587535 | K18: 0.2238538098 | L18: 0.822646435
A19: CF | B19: CIRCUIT CRIMINAL FELONY | D19: 31104 | E19: 9494 | F19: 515 | G19: 7466 | H19: 7466 | I19: 0.3052340535 | J19: 0.01655735597 | K19: 0.2400334362 | L19: 0.5618248457
A20: MM | B20: COUNTY CRIMINAL MISDEMEANOR | D20: 12905 | E20: 5535 | F20: 126 | G20: 2029 | H20: 2029 | I20: 0.4289035258 | J20: 0.009763657497 | K20: 0.1572258814 | L20: 0.5958930647
A21: CO | B21: COUNTY ORDINANCE | D21: 58 | E21: 19 | F21: 0 | G21: 6 | H21: 6 | I21: 0.3275862069 | J21: 0 | K21: 0.1034482759 | L21: 0.4310344828
A22: MO | B22: COUNTY COURT MUNICIPAL ORDINANCE | D22: 58 | E22: 18 | F22: 4 | G22: 5 | H22: 5 | I22: 0.3103448276 | J22: 0.06896551724 | K22: 0.08620689655 | L22: 0.4655172414
A23: IN | B23: COUNTY COURT INFRACTIONS | D23: 800 | E23: 30 | F23: 0 | G23: 8 | H23: 8 | I23: 0.0375 | J23: 0 | K23: 0.01 | L23: 0.0475
A24: CT | B24: COUNTY CRIMINAL TRAFFIC | D24: 12560 | E24: 3730 | F24: 349 | G24: 1494 | H24: 1494 | I24: 0.2969745223 | J24: 0.0277866242 | K24: 0.1189490446 | L24: 0.4437101911
A25: TOTAL OF CRIMINAL DOCUMENTS | D25: =SUM(D18:D24) -> 63614 | E25: =SUM(E18:E24) -> 22495 | F25: =SUM(F18:F24) -> 995 | G25: =SUM(G18:G24) -> 12380 | H25: =SUM(E25:G25) -> 35870 | I25: =IF($D25>0,E25/$D25,0) -> 0.3536171283 | J25: 0.01564121105 | K25: 0.1946112491 | L25: =IF(G25>0,H25/$D25,0) -> 0.5638695885
A27: TR | B27: COUNTY CIVIL TRAFFIC | D27: 9392 | E27: 936 | F27: 2445 | G27: 259 | H27: =SUM(E27:G27) -> 3640 | I27: =IF($D27>0,E27/$D27,0) -> 0.0996592845 | J27: =IF($D27>0,F27/$D27,0) -> 0.2603279387 | K27: 0.02757666099 | L27: 0.3875638842
A29: TOTAL ALL COURT DOCUMENTS | D29: =D16+D25+D27 -> 121675 | E29: =E16+E25+E27 -> 23431 | F29: =F16+F25+F27 -> 3441 | G29: =G16+G25+G27 -> 47922 | H29: =SUM(E29:G29) -> 74794 | I29: =IF($D29>0,E29/$D29,0) -> 0.1925703719 | J29: =IF($D29>0,F29/$D29,0) -> 0.02828025478 | K29: 0.3938524759 | L29: 0.6147031025

Sheet MAR
A1: CLERK OF THE COURTS
A2: BREVARD COUNTY, FLORIDA
A3: ="Document Source Statistics March "&yr -> Document Source Statistics March 2018
A4: Number of Documents Filed by Case Category
A6: Case | B6: Category | D6: Total # of Documents Filed | E6: Documents Filed InCourt | F6: Documents Filed Informix | G6: Documents e-Filed | H6: Total Docs Auto-Docketed | I6: % of TOTAL InCourt | J6: % of TOTAL Informix | K6: % of TOTAL e-Filed | L6: Total % of Documents Auto Docketed
A7: AP | B7: APPEALS | D7: 107 | E7: 0 | F7: 0 | G7: 61 | H7: =SUM(G7) -> 61 | I7: =IF($D7>0,E7/$D7,0) -> 0 | J7: =IF($D7>0,F7/$D7,0) -> 0 | K7: =IF($D7>0,G7/$D7,0) -> 0.5700934579 | L7: =SUM(I7:K7) -> 0.5700934579
A8: CA | B8: CIRCUIT CIVIL | D8: 17821 | E8: 0 | F8: 0 | G8: 14914 | H8: 14914 | I8: =IF($D8>0,E8/$D8,0) -> 0 | J8: 0 | K8: 0.8368778407 | L8: =SUM(I8:K8) -> 0.8368778407
A9: SC | B9: COUNTY CIVIL SMALL CLAIMS | D9: 5615 | E9: 0 | F9: 0 | G9: 4369 | H9: 4369 | I9: 0 | J9: 0 | K9: 0.77809439 | L9: 0.77809439
A10: DR | B10: CIRCUIT CIVIL FAMILY | D10: 16855 | E10: 0 | F10: 0 | G10: 8474 | H10: 8474 | I10: 0 | J10: 0 | K10: 0.5027588253 | L10: 0.5027588253
A11: CP | B11: CIRCUIT CIVIL PROBATE | D11: 4760 | E11: 0 | F11: 0 | G11: 3995 | H11: 3995 | I11: 0 | J11: 0 | K11: 0.8392857143 | L11: 0.8392857143
A12: GA | B12: CIRCUIT CIVIL GUARDIANSHIP | D12: 1866 | E12: 0 | F12: 0 | G12: 1805 | H12: 1805 | I12: 0 | J12: 0 | K12: 0.9673097535 | L12: 0.9673097535
A13: MH | B13: CIRCUIT CIVIL MENTAL HEALTH | D13: 828 | E13: 0 | F13: 0 | G13: 572 | H13: 572 | I13: 0 | J13: 0 | K13: 0.690821256 | L13: 0.690821256
A14: CC | B14: COUNTY CIVIL | D14: 5590 | E14: 0 | F14: 0 | G14: 3840 | H14: 3840 | I14: 0 | J14: 0 | K14: 0.686940966 | L14: 0.686940966
A15: DP | B15: CIRCUIT JUVENILE DEPENDENCY | D15: 2501 | E15: 0 | F15: 0 | G15: 1904 | H15: 1904 | I15: 0 | J15: 0 | K15: 0.7612954818 | L15: 0.7612954818
A16: TOTAL OF CIVIL DOCUMENTS | D16: =SUM(D7:D15) -> 55943 | E16: =SUM(E7:E15) -> 0 | F16: =SUM(F7:F15) -> 0 | G16: =SUM(G7:G15) -> 39934 | H16: 39934 | I16: =IF($D16>0,E16/$D16,0) -> 0 | J16: =IF($D16>0,F16/$D16,0) -> 0 | K16: =IF($D16>0,G16/$D16,0) -> 0.7138337236 | L16: 0.7138337236
A17: .
A18: CJ | B18: CIRCUIT JUVENILE DELINQUENCY | D18: 6918 | E18: 4089 | F18: 4 | G18: 1435 | H18: 1435 | I18: =IF($D18>0,E18/$D18,0) -> 0.5910667823 | J18: 0.0005782017924 | K18: 0.207429893 | L18: 0.7990748771
A19: CF | B19: CIRCUIT CRIMINAL FELONY | D19: 33759 | E19: 10012 | F19: 438 | G19: 8454 | H19: 8454 | I19: 0.2965727658 | J19: 0.01297431796 | K19: 0.2504221097 | L19: 0.5599691934
A20: MM | B20: COUNTY CRIMINAL MISDEMEANOR | D20: 13828 | E20: 5767 | F20: 171 | G20: 2218 | H20: 2218 | I20: 0.4170523575 | J20: 0.01236621348 | K20: 0.16039919 | L20: 0.5898177611
A21: CO | B21: COUNTY ORDINANCE | D21: 45 | E21: 30 | F21: 0 | G21: 1 | H21: 1 | I21: 0.6666666667 | J21: 0 | K21: 0.02222222222 | L21: 0.6888888889
A22: MO | B22: COUNTY COURT MUNICIPAL ORDINANCE | D22: 98 | E22: 22 | F22: 5 | G22: 11 | H22: 11 | I22: 0.2244897959 | J22: 0.05102040816 | K22: 0.112244898 | L22: 0.387755102
A23: IN | B23: COUNTY COURT INFRACTIONS | D23: 674 | E23: 42 | F23: 0 | G23: 2 | H23: 2 | I23: 0.06231454006 | J23: 0 | K23: 0.00296735905 | L23: 0.06528189911
A24: CT | B24: COUNTY CRIMINAL TRAFFIC | D24: 13586 | E24: 7122 | F24: 453 | G24: 1838 | H24: 1838 | I24: 0.5242161048 | J24: 0.03334314736 | K24: 0.1352863242 | L24: 0.6928455763
A25: TOTAL OF CRIMINAL DOCUMENTS | D25: =SUM(D18:D24) -> 68908 | E25: =SUM(E18:E24) -> 27084 | F25: =SUM(F18:F24) -> 1071 | G25: =SUM(G18:G24) -> 13959 | H25: =SUM(E25:G25) -> 42114 | I25: =IF($D25>0,E25/$D25,0) -> 0.3930458002 | J25: 0.01554246241 | K25: 0.2025744471 | L25: =IF(G25>0,H25/$D25,0) -> 0.6111627097
A27: TR | B27: COUNTY CIVIL TRAFFIC | D27: 10606 | E27: 1384 | F27: 2979 | G27: 306 | H27: =SUM(E27:G27) -> 4669 | I27: =IF($D27>0,E27/$D27,0) -> 0.1304921742 | J27: =IF($D27>0,F27/$D27,0) -> 0.2808787479 | K27: 0.02885159344 | L27: 0.4402225156
A29: TOTAL ALL COURT DOCUMENTS | D29: =D16+D25+D27 -> 135457 | E29: =E16+E25+E27 -> 28468 | F29: =F16+F25+F27 -> 4050 | G29: =G16+G25+G27 -> 54199 | H29: =SUM(E29:G29) -> 86717 | I29: =IF($D29>0,E29/$D29,0) -> 0.2101626346 | J29: =IF($D29>0,F29/$D29,0) -> 0.02989878707 | K29: 0.4001195951 | L29: 0.6401810169

Sheet APR
A1: CLERK OF THE COURTS
A2: BREVARD COUNTY, FLORIDA
A3: ="Document Source Statistics April "&yr -> Document Source Statistics April 2018
A4: Number of Documents Filed by Case Category
A6: Case | B6: Category | D6: Total # of Documents Filed | E6: Documents Filed InCourt | F6: Documents Filed Informix | G6: Documents e-Filed | H6: Total Docs Auto-Docketed | I6: % of TOTAL InCourt | J6: % of TOTAL Informix | K6: % of TOTAL e-Filed | L6: Total % of Documents Auto Docketed
A7: AP | B7: APPEALS | D7: 81 | E7: 0 | F7: 0 | G7: 54 | H7: =SUM(G7) -> 54 | I7: =IF($D7>0,E7/$D7,0) -> 0 | J7: =IF($D7>0,F7/$D7,0) -> 0 | K7: =IF($D7>0,G7/$D7,0) -> 0.6666666667 | L7: =SUM(I7:K7) -> 0.6666666667
A8: CA | B8: CIRCUIT CIVIL | D8: 17030 | E8: 0 | F8: 0 | G8: 14154 | H8: 14154 | I8: =IF($D8>0,E8/$D8,0) -> 0 | J8: 0 | K8: 0.8311215502 | L8: =SUM(I8:K8) -> 0.8311215502
A9: SC | B9: COUNTY CIVIL SMALL CLAIMS | D9: 4976 | E9: 0 | F9: 0 | G9: 3871 | H9: 3871 | I9: 0 | J9: 0 | K9: 0.7779340836 | L9: 0.7779340836
A10: DR | B10: CIRCUIT CIVIL FAMILY | D10: 16652 | E10: 0 | F10: 0 | G10: 8466 | H10: 8466 | I10: 0 | J10: 0 | K10: 0.5084073985 | L10: 0.5084073985
A11: CP | B11: CIRCUIT CIVIL PROBATE | D11: 4494 | E11: 0 | F11: 0 | G11: 3763 | H11: 3763 | I11: 0 | J11: 0 | K11: 0.8373386738 | L11: 0.8373386738
A12: GA | B12: CIRCUIT CIVIL GUARDIANSHIP | D12: 1840 | E12: 0 | F12: 0 | G12: 1780 | H12: 1780 | I12: 0 | J12: 0 | K12: 0.9673913043 | L12: 0.9673913043
A13: MH | B13: CIRCUIT CIVIL MENTAL HEALTH | D13: 726 | E13: 0 | F13: 0 | G13: 505 | H13: 505 | I13: 0 | J13: 0 | K13: 0.6955922865 | L13: 0.6955922865
A14: CC | B14: COUNTY CIVIL | D14: 5514 | E14: 0 | F14: 0 | G14: 3875 | H14: 3875 | I14: 0 | J14: 0 | K14: 0.7027566195 | L14: 0.7027566195
A15: DP | B15: CIRCUIT JUVENILE DEPENDENCY | D15: 2381 | E15: 0 | F15: 0 | G15: 1862 | H15: 1862 | I15: 0 | J15: 0 | K15: 0.7820243595 | L15: 0.7820243595
A16: TOTAL OF CIVIL DOCUMENTS | D16: =SUM(D7:D15) -> 53694 | E16: =SUM(E7:E15) -> 0 | F16: =SUM(F7:F15) -> 0 | G16: =SUM(G7:G15) -> 38330 | H16: 38330 | I16: =IF($D16>0,E16/$D16,0) -> 0 | J16: =IF($D16>0,F16/$D16,0) -> 0 | K16: =IF($D16>0,G16/$D16,0) -> 0.7138600216 | L16: 0.7138600216
A18: CJ | B18: CIRCUIT JUVENILE DELINQUENCY | D18: 5026 | E18: 3241 | F18: 4 | G18: 937 | H18: 937 | I18: =IF($D18>0,E18/$D18,0) -> 0.6448467967 | J18: 0.0007958615201 | K18: 0.1864305611 | L18: 0.8320732193
A19: CF | B19: CIRCUIT CRIMINAL FELONY | D19: 31222 | E19: 8920 | F19: 457 | G19: 7873 | H19: 7873 | I19: 0.2856959836 | J19: 0.01463711485 | K19: 0.2521619371 | L19: 0.5524950356
A20: MM | B20: COUNTY CRIMINAL MISDEMEANOR | D20: 15240 | E20: 6099 | F20: 211 | G20: 2473 | H20: 2473 | I20: 0.4001968504 | J20: 0.01384514436 | K20: 0.1622703412 | L20: 0.576312336
A21: CO | B21: COUNTY ORDINANCE | D21: 108 | E21: 21 | F21: 2 | G21: 6 | H21: 6 | I21: 0.1944444444 | J21: 0.01851851852 | K21: 0.05555555556 | L21: 0.2685185185
A22: MO | B22: COUNTY COURT MUNICIPAL ORDINANCE | D22: 136 | E22: 24 | F22: 11 | G22: 28 | H22: 28 | I22: 0.1764705882 | J22: 0.08088235294 | K22: 0.2058823529 | L22: 0.4632352941
A23: IN | B23: COUNTY COURT INFRACTIONS | D23: 563 | E23: 39 | F23: 0 | G23: 0 | H23: 0 | I23: 0.06927175844 | J23: 0 | K23: 0 | L23: 0.06927175844
A24: CT | B24: COUNTY CRIMINAL TRAFFIC | D24: 13667 | E24: 7058 | F24: 533 | G24: 1797 | H24: 1797 | I24: 0.5164264286 | J24: 0.0389990488 | K24: 0.1314845979 | L24: 0.6869100754
A25: TOTAL OF CRIMINAL DOCUMENTS | D25: =SUM(D18:D24) -> 65962 | E25: =SUM(E18:E24) -> 25402 | F25: =SUM(F18:F24) -> 1218 | G25: =SUM(G18:G24) -> 13114 | H25: =SUM(E25:G25) -> 39734 | I25: =IF($D25>0,E25/$D25,0) -> 0.3851005124 | J25: 0.01846517692 | K25: 0.1988114369 | L25: =IF(G25>0,H25/$D25,0) -> 0.6023771262
A27: TR | B27: COUNTY CIVIL TRAFFIC | D27: 10928 | E27: 1233 | F27: 2966 | G27: 284 | H27: =SUM(E27:G27) -> 4483 | I27: =IF($D27>0,E27/$D27,0) -> 0.112829429 | J27: =IF($D27>0,F27/$D27,0) -> 0.2714128843 | K27: 0.02598828697 | L27: 0.4102306003
A29: TOTAL ALL COURT DOCUMENTS | D29: =D16+D25+D27 -> 130584 | E29: =E16+E25+E27 -> 26635 | F29: =F16+F25+F27 -> 4184 | G29: =G16+G25+G27 -> 51728 | H29: =SUM(E29:G29) -> 82547 | I29: =IF($D29>0,E29/$D29,0) -> 0.2039683269 | J29: =IF($D29>0,F29/$D29,0) -> 0.0320406788 | K29: 0.3961281627 | L29: 0.6321371684

Sheet MAY
A1: CLERK OF THE COURTS
A2: BREVARD COUNTY, FLORIDA
A3: ="Document Source Statistics May "&yr -> Document Source Statistics May 2018
A4: Number of Documents Filed by Case Category
A6: Case | B6: Category | D6: Total # of Documents Filed | E6: Documents Filed InCourt | F6: Documents Filed Informix | G6: Documents e-Filed | H6: Total Docs Auto-Docketed | I6: % of TOTAL InCourt | J6: % of TOTAL Informix | K6: % of TOTAL e-Filed | L6: Total % of Documents Auto Docketed
A7: AP | B7: APPEALS | H7: =SUM(G7) -> 0 | I7: =IF($D7>0,E7/$D7,0) -> 0 | J7: =IF($D7>0,F7/$D7,0) -> 0 | K7: =IF($D7>0,G7/$D7,0) -> 0 | L7: =SUM(I7:K7) -> 0
A8: CA | B8: CIRCUIT CIVIL | H8: 0 | I8: =IF($D8>0,E8/$D8,0) -> 0 | J8: 0 | K8: 0 | L8: =SUM(I8:K8) -> 0
A9: SC | B9: COUNTY CIVIL SMALL CLAIMS | H9: 0 | I9: 0 | J9: 0 | K9: 0 | L9: 0
A10: DR | B10: CIRCUIT CIVIL FAMILY | H10: 0 | I10: 0 | J10: 0 | K10: 0 | L10: 0
A11: CP | B11: CIRCUIT CIVIL PROBATE | H11: 0 | I11: 0 | J11: 0 | K11: 0 | L11: 0
A12: GA | B12: CIRCUIT CIVIL GUARDIANSHIP | H12: 0 | I12: 0 | J12: 0 | K12: 0 | L12: 0
A13: MH | B13: CIRCUIT CIVIL MENTAL HEALTH | H13: 0 | I13: 0 | J13: 0 | K13: 0 | L13: 0
A14: CC | B14: COUNTY CIVIL | H14: 0 | I14: 0 | J14: 0 | K14: 0 | L14: 0
A15: DP | B15: CIRCUIT JUVENILE DEPENDENCY | H15: 0 | I15: 0 | J15: 0 | K15: 0 | L15: 0
A16: TOTAL OF CIVIL DOCUMENTS | D16: =SUM(D7:D15) -> 0 | E16: =SUM(E7:E15) -> 0 | F16: =SUM(F7:F15) -> 0 | G16: =SUM(G7:G15) -> 0 | H16: 0 | I16: =IF($D16>0,E16/$D16,0) -> 0 | J16: =IF($D16>0,F16/$D16,0) -> 0 | K16: =IF($D16>0,G16/$D16,0) -> 0 | L16: 0
A17: .
A18: CJ | B18: CIRCUIT JUVENILE DELINQUENCY | H18: 0 | I18: =IF($D18>0,E18/$D18,0) -> 0 | J18: 0 | K18: 0 | L18: 0
A19: CF | B19: CIRCUIT CRIMINAL FELONY | H19: 0 | I19: 0 | J19: 0 | K19: 0 | L19: 0
A20: MM | B20: COUNTY CRIMINAL MISDEMEANOR | H20: 0 | I20: 0 | J20: 0 | K20: 0 | L20: 0
A21: CO | B21: COUNTY ORDINANCE | H21: 0 | I21: 0 | J21: 0 | K21: 0 | L21: 0
A22: MO | B22: COUNTY COURT MUNICIPAL ORDINANCE | H22: 0 | I22: 0 | J22: 0 | K22: 0 | L22: 0
A23: IN | B23: COUNTY COURT INFRACTIONS | H23: 0 | I23: 0 | J23: 0 | K23: 0 | L23: 0
A24: CT | B24: COUNTY CRIMINAL TRAFFIC | H24: 0 | I24: 0 | J24: 0 | K24: 0 | L24: 0
A25: TOTAL OF CRIMINAL DOCUMENTS | D25: =SUM(D18:D24) -> 0 | E25: =SUM(E18:E24) -> 0 | F25: =SUM(F18:F24) -> 0 | G25: =SUM(G18:G24) -> 0 | H25: =SUM(E25:G25) -> 0 | I25: =IF($D25>0,E25/$D25,0) -> 0 | J25: 0 | K25: 0 | L25: =IF(G25>0,H25/$D25,0) -> 0
A27: TR | B27: COUNTY CIVIL TRAFFIC | H27: =SUM(E27:G27) -> 0 | I27: =IF($D27>0,E27/$D27,0) -> 0 | J27: =IF($D27>0,F27/$D27,0) -> 0 | K27: 0 | L27: 0
A29: TOTAL ALL COURT DOCUMENTS | D29: =D16+D25+D27 -> 0 | E29: =E16+E25+E27 -> 0 | F29: =F16+F25+F27 -> 0 | G29: =G16+G25+G27 -> 0 | H29: =SUM(E29:G29) -> 0 | I29: =IF($D29>0,E29/$D29,0) -> 0 | J29: =IF($D29>0,F29/$D29,0) -> 0 | K29: 0 | L29: 0

Sheet JUN
A1: CLERK OF THE COURTS
A2: BREVARD COUNTY, FLORIDA
A3: ="Document Source Statistics June "&yr -> Document Source Statistics June 2018
A4: Number of Documents Filed by Case Category
A6: Case | B6: Category | D6: Total # of Documents Filed | E6: Documents Filed InCourt | F6: Documents Filed Informix | G6: Documents e-Filed | H6: Total Docs Auto-Docketed | I6: % of TOTAL InCourt | J6: % of TOTAL Informix | K6: % of TOTAL e-Filed | L6: Total % of Documents Auto Docketed
A7: AP | B7: APPEALS | H7: =SUM(G7) -> 0 | I7: =IF($D7>0,E7/$D7,0) -> 0 | J7: =IF($D7>0,F7/$D7,0) -> 0 | K7: =IF($D7>0,G7/$D7,0) -> 0 | L7: =SUM(I7:K7) -> 0
A8: CA | B8: CIRCUIT CIVIL | H8: 0 | I8: =IF($D8>0,E8/$D8,0) -> 0 | J8: 0 | K8: 0 | L8: =SUM(I8:K8) -> 0
A9: SC | B9: COUNTY CIVIL SMALL CLAIMS | H9: 0 | I9: 0 | J9: 0 | K9: 0 | L9: 0
A10: DR | B10: CIRCUIT CIVIL FAMILY | H10: 0 | I10: 0 | J10: 0 | K10: 0 | L10: 0
A11: CP | B11: CIRCUIT CIVIL PROBATE | H11: 0 | I11: 0 | J11: 0 | K11: 0 | L11: 0
A12: GA | B12: CIRCUIT CIVIL GUARDIANSHIP | H12: 0 | I12: 0 | J12: 0 | K12: 0 | L12: 0
A13: MH | B13: CIRCUIT CIVIL MENTAL HEALTH | H13: 0 | I13: 0 | J13: 0 | K13: 0 | L13: 0
A14: CC | B14: COUNTY CIVIL | H14: 0 | I14: 0 | J14: 0 | K14: 0 | L14: 0
A15: DP | B15: CIRCUIT JUVENILE DEPENDENCY | H15: 0 | I15: 0 | J15: 0 | K15: 0 | L15: 0
A16: TOTAL OF CIVIL DOCUMENTS | D16: =SUM(D7:D15) -> 0 | E16: =SUM(E7:E15) -> 0 | F16: =SUM(F7:F15) -> 0 | G16: =SUM(G7:G15) -> 0 | H16: 0 | I16: =IF($D16>0,E16/$D16,0) -> 0 | J16: =IF($D16>0,F16/$D16,0) -> 0 | K16: =IF($D16>0,G16/$D16,0) -> 0 | L16: 0
A17: .
A18: CJ | B18: CIRCUIT JUVENILE DELINQUENCY | H18: 0 | I18: =IF($D18>0,E18/$D18,0) -> 0 | J18: 0 | K18: 0 | L18: 0
A19: CF | B19: CIRCUIT CRIMINAL FELONY | H19: 0 | I19: 0 | J19: 0 | K19: 0 | L19: 0
A20: MM | B20: COUNTY CRIMINAL MISDEMEANOR | H20: 0 | I20: 0 | J20: 0 | K20: 0 | L20: 0
A21: CO | B21: COUNTY ORDINANCE | H21: 0 | I21: 0 | J21: 0 | K21: 0 | L21: 0
A22: MO | B22: COUNTY COURT MUNICIPAL ORDINANCE | H22: 0 | I22: 0 | J22: 0 | K22: 0 | L22: 0
A23: IN | B23: COUNTY COURT INFRACTIONS | H23: 0 | I23: 0 | J23: 0 | K23: 0 | L23: 0
A24: CT | B24: COUNTY CRIMINAL TRAFFIC | H24: 0 | I24: 0 | J24: 0 | K24: 0 | L24: 0
A25: TOTAL OF CRIMINAL DOCUMENTS | D25: =SUM(D18:D24) -> 0 | E25: =SUM(E18:E24) -> 0 | F25: =SUM(F18:F24) -> 0 | G25: =SUM(G18:G24) -> 0 | H25: =SUM(E25:G25) -> 0 | I25: =IF($D25>0,E25/$D25,0) -> 0 | J25: 0 | K25: 0 | L25: =IF(G25>0,H25/$D25,0) -> 0
A27: TR | B27: COUNTY CIVIL TRAFFIC | H27: =SUM(E27:G27) -> 0 | I27: =IF($D27>0,E27/$D27,0) -> 0 | J27: =IF($D27>0,F27/$D27,0) -> 0 | K27: 0 | L27: 0
A29: TOTAL ALL COURT DOCUMENTS | D29: =D16+D25+D27 -> 0 | E29: =E16+E25+E27 -> 0 | F29: =F16+F25+F27 -> 0 | G29: =G16+G25+G27 -> 0 | H29: =SUM(E29:G29) -> 0 | I29: =IF($D29>0,E29/$D29,0) -> 0 | J29: =IF($D29>0,F29/$D29,0) -> 0 | K29: 0 | L29: 0

Sheet JUL
A1: CLERK OF THE COURTS
A2: BREVARD COUNTY, FLORIDA
A3: ="Document Source Statistics July "&yr -> Document Source Statistics July 2018
A4: Number of Documents Filed by Case Category
A6: Case | B6: Category | D6: Total # of Documents Filed | E6: Documents Filed InCourt | F6: Documents Filed Informix | G6: Documents e-Filed | H6: Total Docs Auto-Docketed | I6: % of TOTAL InCourt | J6: % of TOTAL Informix | K6: % of TOTAL e-Filed | L6: Total % of Documents Auto Docketed
A7: AP | B7: APPEALS | H7: =SUM(G7) -> 0 | I7: =IF($D7>0,E7/$D7,0) -> 0 | J7: =IF($D7>0,F7/$D7,0) -> 0 | K7: =IF($D7>0,G7/$D7,0) -> 0 | L7: =SUM(I7:K7) -> 0
A8: CA | B8: CIRCUIT CIVIL | H8: 0 | I8: =IF($D8>0,E8/$D8,0) -> 0 | J8: 0 | K8: 0 | L8: =SUM(I8:K8) -> 0
A9: SC | B9: COUNTY CIVIL SMALL CLAIMS | H9: 0 | I9: 0 | J9: 0 | K9: 0 | L9: 0
A10: DR | B10: CIRCUIT CIVIL FAMILY | H10: 0 | I10: 0 | J10: 0 | K10: 0 | L10: 0
A11: CP | B11: CIRCUIT CIVIL PROBATE | H11: 0 | I11: 0 | J11: 0 | K11: 0 | L11: 0
A12: GA | B12: CIRCUIT CIVIL GUARDIANSHIP | H12: 0 | I12: 0 | J12: 0 | K12: 0 | L12: 0
A13: MH | B13: CIRCUIT CIVIL MENTAL HEALTH | H13: 0 | I13: 0 | J13: 0 | K13: 0 | L13: 0
A14: CC | B14: COUNTY CIVIL | H14: 0 | I14: 0 | J14: 0 | K14: 0 | L14: 0
A15: DP | B15: CIRCUIT JUVENILE DEPENDENCY | H15: 0 | I15: 0 | J15: 0 | K15: 0 | L15: 0
A16: TOTAL OF CIVIL DOCUMENTS | D16: =SUM(D7:D15) -> 0 | E16: =SUM(E7:E15) -> 0 | F16: =SUM(F7:F15) -> 0 | G16: =SUM(G7:G15) -> 0 | H16: 0 | I16: =IF($D16>0,E16/$D16,0) -> 0 | J16: =IF($D16>0,F16/$D16,0) -> 0 | K16: =IF($D16>0,G16/$D16,0) -> 0 | L16: 0
A17: .
A18: CJ | B18: CIRCUIT JUVENILE DELINQUENCY | H18: 0 | I18: =IF($D18>0,E18/$D18,0) -> 0 | J18: 0 | K18: 0 | L18: 0
A19: CF | B19: CIRCUIT CRIMINAL FELONY | H19: 0 | I19: 0 | J19: 0 | K19: 0 | L19: 0
A20: MM | B20: COUNTY CRIMINAL MISDEMEANOR | H20: 0 | I20: 0 | J20: 0 | K20: 0 | L20: 0
A21: CO | B21: COUNTY ORDINANCE | H21: 0 | I21: 0 | J21: 0 | K21: 0 | L21: 0
A22: MO | B22: COUNTY COURT MUNICIPAL ORDINANCE | H22: 0 | I22: 0 | J22: 0 | K22: 0 | L22: 0
A23: IN | B23: COUNTY COURT INFRACTIONS | H23: 0 | I23: 0 | J23: 0 | K23: 0 | L23: 0
A24: CT | B24: COUNTY CRIMINAL TRAFFIC | H24: 0 | I24: 0 | J24: 0 | K24: 0 | L24: 0
A25: TOTAL OF CRIMINAL DOCUMENTS | D25: =SUM(D18:D24) -> 0 | E25: =SUM(E18:E24) -> 0 | F25: =SUM(F18:F24) -> 0 | G25: =SUM(G18:G24) -> 0 | H25: =SUM(E25:G25) -> 0 | I25: =IF($D25>0,E25/$D25,0) -> 0 | J25: 0 | K25: 0 | L25: =IF(G25>0,H25/$D25,0) -> 0
A27: TR | B27: COUNTY CIVIL TRAFFIC | H27: =SUM(E27:G27) -> 0 | I27: =IF($D27>0,E27/$D27,0) -> 0 | J27: =IF($D27>0,F27/$D27,0) -> 0 | K27: 0 | L27: 0
A29: TOTAL ALL COURT DOCUMENTS | D29: =D16+D25+D27 -> 0 | E29: =E16+E25+E27 -> 0 | F29: =F16+F25+F27 -> 0 | G29: =G16+G25+G27 -> 0 | H29: =SUM(E29:G29) -> 0 | I29: =IF($D29>0,E29/$D29,0) -> 0 | J29: =IF($D29>0,F29/$D29,0) -> 0 | K29: 0 | L29: 0

Sheet AUG
A1: CLERK OF THE COURTS
A2: BREVARD COUNTY, FLORIDA
A3: ="Document Source Statistics August "&yr -> Document Source Statistics August 2018
A4: Number of Documents Filed by Case Category
A6: Case | B6: Category | D6: Total # of Documents Filed | E6: Documents Filed InCourt | F6: Documents Filed Informix | G6: Documents e-Filed | H6: Total Docs Auto-Docketed | I6: % of TOTAL InCourt | J6: % of TOTAL Informix | K6: % of TOTAL e-Filed | L6: Total % of Documents Auto Docketed
A7: AP | B7: APPEALS | H7: =SUM(G7) -> 0 | I7: =IF($D7>0,E7/$D7,0) -> 0 | J7: =IF($D7>0,F7/$D7,0) -> 0 | K7: =IF($D7>0,G7/$D7,0) -> 0 | L7: =SUM(I7:K7) -> 0
A8: CA | B8: CIRCUIT CIVIL | H8: 0 | I8: =IF($D8>0,E8/$D8,0) -> 0 | J8: 0 | K8: 0 | L8: =SUM(I8:K8) -> 0
A9: SC | B9: COUNTY CIVIL SMALL CLAIMS | H9: 0 | I9: 0 | J9: 0 | K9: 0 | L9: 0
A10: DR | B10: CIRCUIT CIVIL FAMILY | H10: 0 | I10: 0 | J10: 0 | K10: 0 | L10: 0
A11: CP | B11: CIRCUIT CIVIL PROBATE | H11: 0 | I11: 0 | J11: 0 | K11: 0 | L11: 0
A12: GA | B12: CIRCUIT CIVIL GUARDIANSHIP | H12: 0 | I12: 0 | J12: 0 | K12: 0 | L12: 0
A13: MH | B13: CIRCUIT CIVIL MENTAL HEALTH | H13: 0 | I13: 0 | J13: 0 | K13: 0 | L13: 0
A14: CC | B14: COUNTY CIVIL | H14: 0 | I14: 0 | J14: 0 | K14: 0 | L14: 0
A15: DP | B15: CIRCUIT JUVENILE DEPENDENCY | H15: 0 | I15: 0 | J15: 0 | K15: 0 | L15: 0
A16: TOTAL OF CIVIL DOCUMENTS | D16: =SUM(D7:D15) -> 0 | E16: =SUM(E7:E15) -> 0 | F16: =SUM(F7:F15) -> 0 | G16: =SUM(G7:G15) -> 0 | H16: 0 | I16: =IF($D16>0,E16/$D16,0) -> 0 | J16: =IF($D16>0,F16/$D16,0) -> 0 | K16: =IF($D16>0,G16/$D16,0) -> 0 | L16: 0
A17: .
A18: CJ | B18: CIRCUIT JUVENILE DELINQUENCY | H18: 0 | I18: =IF($D18>0,E18/$D18,0) -> 0 | J18: 0 | K18: 0 | L18: 0
A19: CF | B19: CIRCUIT CRIMINAL FELONY | H19: 0 | I19: 0 | J19: 0 | K19: 0 | L19: 0
A20: MM | B20: COUNTY CRIMINAL MISDEMEANOR | H20: 0 | I20: 0 | J20: 0 | K20: 0 | L20: 0
A21: CO | B21: COUNTY ORDINANCE | H21: 0 | I21: 0 | J21: 0 | K21: 0 | L21: 0
A22: MO | B22: COUNTY COURT MUNICIPAL ORDINANCE | H22: 0 | I22: 0 | J22: 0 | K22: 0 | L22: 0
A23: IN | B23: COUNTY COURT INFRACTIONS | H23: 0 | I23: 0 | J23: 0 | K23: 0 | L23: 0
A24: CT | B24: COUNTY CRIMINAL TRAFFIC | H24: 0 | I24: 0 | J24: 0 | K24: 0 | L24: 0
A25: TOTAL OF CRIMINAL DOCUMENTS | D25: =SUM(D18:D24) -> 0 | E25: =SUM(E18:E24) -> 0 | F25: =SUM(F18:F24) -> 0 | G25: =SUM(G18:G24) -> 0 | H25: =SUM(E25:G25) -> 0 | I25: =IF($D25>0,E25/$D25,0) -> 0 | J25: 0 | K25: 0 | L25: =IF(G25>0,H25/$D25,0) -> 0
A27: TR | B27: COUNTY CIVIL TRAFFIC | D27: 10461 | E27: 1060 | F27: 2205 | G27: 355 | H27: =SUM(E27:G27) -> 3620 | I27: =IF($D27>0,E27/$D27,0) -> 0.1013287449 | J27: =IF($D27>0,F27/$D27,0) -> 0.2107829079 | K27: 0.03393557021 | L27: 0.346047223
A29: TOTAL ALL COURT DOCUMENTS | D29: =D16+D25+D27 -> 10461 | E29: =E16+E25+E27 -> 1060 | F29: =F16+F25+F27 -> 2205 | G29: =G16+G25+G27 -> 355 | H29: =SUM(E29:G29) -> 3620 | I29: =IF($D29>0,E29/$D29,0) -> 0.1013287449 | J29: =IF($D29>0,F29/$D29,0) -> 0.2107829079 | K29: 0.03393557021 | L29: 0.346047223

Sheet SEP
A1: CLERK OF THE COURTS
A2: BREVARD COUNTY, FLORIDA
A3: ="Document Source Statistics September "&yr -> Document Source Statistics September 2018
A4: Number of Documents Filed by Case Category
A6: Case | B6: Category | D6: Total # of Documents Filed | E6: Documents Filed InCourt | F6: Documents Filed Informix | G6: Documents e-Filed | H6: Total Docs Auto-Docketed | I6: % of TOTAL InCourt | J6: % of TOTAL Informix | K6: % of TOTAL e-Filed | L6: Total % of Documents Auto Docketed
A7: AP | B7: APPEALS | H7: =SUM(G7) -> 0 | I7: =IF($D7>0,E7/$D7,0) -> 0 | J7: =IF($D7>0,F7/$D7,0) -> 0 | K7: =IF($D7>0,G7/$D7,0) -> 0 | L7: =SUM(I7:K7) -> 0
A8: CA | B8: CIRCUIT CIVIL | H8: 0 | I8: 0 | J8: 0 | K8: 0 | L8: 0
A9: SC | B9: COUNTY CIVIL SMALL CLAIMS | H9: 0 | I9: 0 | J9: 0 | K9: 0 | L9: 0
A10: DR | B10: CIRCUIT CIVIL FAMILY | H10: 0 | I10: 0 | J10: 0 | K10: 0 | L10: 0
A11: CP | B11: CIRCUIT CIVIL PROBATE | H11: 0 | I11: 0 | J11: 0 | K11: 0 | L11: 0
A12: GA | B12: CIRCUIT CIVIL GUARDIANSHIP | H12: 0 | I12: 0 | J12: 0 | K12: 0 | L12: 0
A13: MH | B13: CIRCUIT CIVIL MENTAL HEALTH | H13: 0 | I13: 0 | J13: 0 | K13: 0 | L13: 0
A14: CC | B14: COUNTY CIVIL | H14: 0 | I14: 0 | J14: 0 | K14: 0 | L14: 0
A15: DP | B15: CIRCUIT JUVENILE DEPENDENCY | H15: 0 | I15: 0 | J15: 0 | K15: 0 | L15: 0
A16: TOTAL OF CIVIL DOCUMENTS | D16: =SUM(D7:D15) -> 0 | E16: =SUM(E7:E15) -> 0 | F16: =SUM(F7:F15) -> 0 | G16: =SUM(G7:G15) -> 0 | H16: 0 | I16: 0 | J16: 0 | K16: 0 | L16: 0
A17: .
A18: CJ | B18: CIRCUIT JUVENILE DELINQUENCY | H18: =SUM(G18) -> 0 | I18: =IF($D18>0,E18/$D18,0) -> 0 | J18: 0 | K18: 0 | L18: =SUM(I18:K18) -> 0
A19: CF | B19: CIRCUIT CRIMINAL FELONY | H19: 0 | I19: 0 | J19: 0 | K19: 0 | L19: 0
A20: MM | B20: COUNTY CRIMINAL MISDEMEANOR | H20: 0 | I20: 0 | J20: 0 | K20: 0 | L20: 0
A21: CO | B21: COUNTY ORDINANCE | H21: 0 | I21: 0 | J21: 0 | K21: 0 | L21: 0
A22: MO | B22: COUNTY COURT MUNICIPAL ORDINANCE | H22: 0 | I22: 0 | J22: 0 | K22: 0 | L22: 0
A23: IN | B23: COUNTY COURT INFRACTIONS | H23: 0 | I23: 0 | J23: 0 | K23: 0 | L23: 0
A24: CT | B24: COUNTY CRIMINAL TRAFFIC | H24: 0 | I24: 0 | J24: 0 | K24: 0 | L24: 0
A25: TOTAL OF CRIMINAL DOCUMENTS | D25: =SUM(D18:D24) -> 0 | E25: =SUM(E18:E24) -> 0 | F25: =SUM(F18:F24) -> 0 | G25: =SUM(G18:G24) -> 0 | H25: =SUM(E25:G25) -> 0 | I25: 0 | J25: 0 | K25: 0 | L25: =IF(G25>0,H25/$D25,0) -> 0
A27: TR | B27: COUNTY CIVIL TRAFFIC | H27: =SUM(E27:G27) -> 0 | I27: =IF($D27>0,E27/$D27,0) -> 0 | J27: =IF($D27>0,F27/$D27,0) -> 0 | K27: =IF($D27>0,G27/$D27,0) -> 0 | L27: =IF($D27>0,H27/$D27,0) -> 0
A29: TOTAL ALL COURT DOCUMENTS | D29: =D16+D25+D27 -> 0 | E29: =E16+E25+E27 -> 0 | F29: =F16+F25+F27 -> 0 | G29: =G16+G25+G27 -> 0 | H29: =SUM(E29:G29) -> 0 | I29: =IF($D29>0,E29/$D29,0) -> 0 | J29: =IF($D29>0,F29/$D29,0) -> 0 | K29: =IF($D29>0,G29/$D29,0) -> 0 | L29: =IF($D29>0,H29/$D29,0) -> 0

Sheet OCT
A1: CLERK OF THE COURTS
A2: BREVARD COUNTY, FLORIDA
A3: ="Document Source Statistics October "&yr -> Document Source Statistics October 2018
A4: Number of Documents Filed by Case Category
A6: Case | B6: Category | D6: Total # of Documents Filed | E6: Documents Filed InCourt | F6: Documents Filed Informix | G6: Documents e-Filed | H6: Total Docs Auto-Docketed | I6: % of TOTAL InCourt | J6: % of TOTAL Informix | K6: % of TOTAL e-Filed | L6: Total % of Documents Auto Docketed
A7: AP | B7: APPEALS | H7: =SUM(G7) -> 0 | I7: =IF($D7>0,E7/$D7,0) -> 0 | J7: =IF($D7>0,F7/$D7,0) -> 0 | K7: =IF($D7>0,G7/$D7,0) -> 0 | L7: =SUM(I7:K7) -> 0
A8: CA | B8: CIRCUIT CIVIL | H8: 0 | I8: =IF($D8>0,E8/$D8,0) -> 0 | J8: 0 | K8: 0 | L8: =SUM(I8:K8) -> 0
A9: SC | B9: COUNTY CIVIL SMALL CLAIMS | H9: 0 | I9: 0 | J9: 0 | K9: 0 | L9: 0
A10: DR | B10: CIRCUIT CIVIL FAMILY | H10: 0 | I10: 0 | J10: 0 | K10: 0 | L10: 0
A11: CP | B11: CIRCUIT CIVIL PROBATE | H11: 0 | I11: 0 | J11: 0 | K11: 0 | L11: 0
A12: GA | B12: CIRCUIT CIVIL GUARDIANSHIP | H12: 0 | I12: 0 | J12: 0 | K12: 0 | L12: 0
A13: MH | B13: CIRCUIT CIVIL MENTAL HEALTH | H13: 0 | I13: 0 | J13: 0 | K13: 0 | L13: 0
A14: CC | B14: COUNTY CIVIL | H14: 0 | I14: 0 | J14: 0 | K14: 0 | L14: 0
A15: DP | B15: CIRCUIT JUVENILE DEPENDENCY | H15: 0 | I15: 0 | J15: 0 | K15: 0 | L15: 0
A16: TOTAL OF CIVIL DOCUMENTS | D16: =SUM(D7:D15) -> 0 | E16: =SUM(E7:E15) -> 0 | F16: =SUM(F7:F15) -> 0 | G16: =SUM(G7:G15) -> 0 | H16: 0 | I16: =IF($D16>0,E16/$D16,0) -> 0 | J16: =IF($D16>0,F16/$D16,0) -> 0 | K16: =IF($D16>0,G16/$D16,0) -> 0 | L16: 0
A18: CJ | B18: CIRCUIT JUVENILE DELINQUENCY | H18: 0 | I18: =IF($D18>0,E18/$D18,0) -> 0 | J18: 0 | K18: 0 | L18: 0
A19: CF | B19: CIRCUIT CRIMINAL FELONY | H19: 0 | I19: 0 | J19: 0 | K19: 0 | L19: 0
A20: MM | B20: COUNTY CRIMINAL MISDEMEANOR | H20: 0 | I20: 0 | J20: 0 | K20: 0 | L20: 0
A21: CO | B21: COUNTY ORDINANCE | H21: 0 | I21: 0 | J21: 0 | K21: 0 | L21: 0
A22: MO | B22: COUNTY COURT MUNICIPAL ORDINANCE | H22: 0 | I22: 0 | J22: 0 | K22: 0 | L22: 0
A23: IN | B23: COUNTY COURT INFRACTIONS | H23: 0 | I23: 0 | J23: 0 | K23: 0 | L23: 0
A24: CT | B24: COUNTY CRIMINAL TRAFFIC | H24: 0 | I24: 0 | J24: 0 | K24: 0 | L24: 0
A25: TOTAL OF CRIMINAL DOCUMENTS | D25: =SUM(D18:D24) -> 0 | E25: =SUM(E18:E24) -> 0 | F25: =SUM(F18:F24) -> 0 | G25: =SUM(G18:G24) -> 0 | H25: =SUM(E25:G25) -> 0 | I25: =IF($D25>0,E25/$D25,0) -> 0 | J25: 0 | K25: 0 | L25: =IF(G25>0,H25/$D25,0) -> 0
A27: TR | B27: COUNTY CIVIL TRAFFIC | H27: =SUM(E27:G27) -> 0 | I27: =IF($D27>0,E27/$D27,0) -> 0 | J27: =IF($D27>0,F27/$D27,0) -> 0 | K27: 0 | L27: 0
A29: TOTAL ALL COURT DOCUMENTS | D29: =D16+D25+D27 -> 0 | E29: =E16+E25+E27 -> 0 | F29: =F16+F25+F27 -> 0 | G29: =G16+G25+G27 -> 0 | H29: =SUM(E29:G29) -> 0 | I29: =IF($D29>0,E29/$D29,0) -> 0 | J29: =IF($D29>0,F29/$D29,0) -> 0 | K29: 0 | L29: 0

Sheet NOV
A1: CLERK OF THE COURTS
A2: BREVARD COUNTY, FLORIDA
A3: ="Document Source Statistics November "&yr -> Document Source Statistics November 2018
A4: Number of Documents Filed by Case Category
A6: Case | B6: Category | D6: Total # of Documents Filed | E6: Documents Filed InCourt | F6: Documents Filed Informix | G6: Documents e-Filed | H6: Total Docs Auto-Docketed | I6: % of TOTAL InCourt | J6: % of TOTAL Informix | K6: % of TOTAL e-Filed | L6: Total % of Documents Auto Docketed
A7: AP | B7: APPEALS | H7: =SUM(G7) -> 0 | I7: =IF($D7>0,E7/$D7,0) -> 0 | J7: =IF($D7>0,F7/$D7,0) -> 0 | K7: =IF($D7>0,G7/$D7,0) -> 0 | L7: =SUM(I7:K7) -> 0
A8: CA | B8: CIRCUIT CIVIL | H8: 0 | I8: =IF($D8>0,E8/$D8,0) -> 0 | J8: =IF($D8>0,F8/$D8,0) -> 0 | K8: =IF($D8>0,G8/$D8,0) -> 0 | L8: =SUM(I8:K8) -> 0
A9: SC | B9: COUNTY CIVIL SMALL CLAIMS | H9: 0 | I9: 0 | J9: 0 | K9: 0 | L9: 0
A10: DR | B10: CIRCUIT CIVIL FAMILY | H10: 0 | I10: 0 | J10: 0 | K10: 0 | L10: 0
A11: CP | B11: CIRCUIT CIVIL PROBATE | H11: 0 | I11: 0 | J11: 0 | K11: 0 | L11: 0
A12: GA | B12: CIRCUIT CIVIL GUARDIANSHIP | H12: 0 | I12: 0 | J12: 0 | K12: 0 | L12: 0
A13: MH | B13: CIRCUIT CIVIL MENTAL HEALTH | H13: 0 | I13: 0 | J13: 0 | K13: 0 | L13: 0
A14: CC | B14: COUNTY CIVIL | H14: 0 | I14: 0 | J14: 0 | K14: 0 | L14: 0
A15: DP | B15: CIRCUIT JUVENILE DEPENDENCY | H15: 0 | I15: 0 | J15: 0 | K15: 0 | L15: 0
A16: TOTAL OF CIVIL DOCUMENTS | D16: =SUM(D7:D15) -> 0 | E16: =SUM(E7:E15) -> 0 | F16: =SUM(F7:F15) -> 0 | G16: =SUM(G7:G15) -> 0 | H16: =SUM(G16) -> 0 | I16: 0 | J16: =IF($D16>0,F16/$D16,0) -> 0 | K16: 0 | L16: 0
A17: .
A18: CJ | B18: CIRCUIT JUVENILE DELINQUENCY | H18: 0 | I18: =IF($D18>0,E18/$D18,0) -> 0 | J18: 0 | K18: 0 | L18: 0
A19: CF | B19: CIRCUIT CRIMINAL FELONY | H19: 0 | I19: 0 | J19: 0 | K19: 0 | L19: 0
A20: MM | B20: COUNTY CRIMINAL MISDEMEANOR | H20: 0 | I20: 0 | J20: 0 | K20: 0 | L20: 0
A21: CO | B21: COUNTY ORDINANCE | H21: 0 | I21: 0 | J21: 0 | K21: 0 | L21: 0
A22: MO | B22: COUNTY COURT MUNICIPAL ORDINANCE | H22: 0 | I22: 0 | J22: 0 | K22: 0 | L22: 0
A23: IN | B23: COUNTY COURT INFRACTIONS | H23: 0 | I23: 0 | J23: 0 | K23: 0 | L23: 0
A24: CT | B24: COUNTY CRIMINAL TRAFFIC | H24: 0 | I24: 0 | J24: 0 | K24: 0 | L24: 0
A25: TOTAL OF CRIMINAL DOCUMENTS | D25: =SUM(D18:D24) -> 0 | E25: =SUM(E18:E24) -> 0 | F25: =SUM(F18:F24) -> 0 | G25: =SUM(G18:G24) -> 0 | H25: =SUM(E25:G25) -> 0 | I25: =IF($D25>0,E25/$D25,0) -> 0 | J25: 0 | K25: 0 | L25: =IF(G25>0,H25/$D25,0) -> 0
A27: TR | B27: COUNTY CIVIL TRAFFIC | H27: =SUM(E27:G27) -> 0 | I27: =IF($D27>0,E27/$D27,0) -> 0 | J27: =IF($D27>0,F27/$D27,0) -> 0 | K27: 0 | L27: 0
A29: TOTAL ALL COURT DOCUMENTS | D29: =D16+D25+D27 -> 0 | E29: =E16+E25+E27 -> 0 | F29: =F16+F25+F27 -> 0 | G29: =G16+G25+G27 -> 0 | H29: =SUM(E29:G29) -> 0 | I29: =IF($D29>0,E29/$D29,0) -> 0 | J29: =IF($D29>0,F29/$D29,0) -> 0 | K29: 0 | L29: 0

Sheet DEC
A1: CLERK OF THE COURTS
A2: BREVARD COUNTY, FLORIDA
A3: ="Document Source Statistics December "&yr -> Document Source Statistics December 2018
A4: Number of Documents Filed by Case Category
A6: Case | B6: Category | D6: Total # of Documents Filed | E6: Documents Filed InCourt | F6: Documents Filed Informix | G6: Documents e-Filed | H6: Total Docs Auto-Docketed | I6: % of TOTAL InCourt | J6: % of TOTAL Informix | K6: % of TOTAL e-Filed | L6: Total % of Documents Auto Docketed
A7: AP | B7: APPEALS | H7: =SUM(G7) -> 0 | I7: =IF($D7>0,E7/$D7,0) -> 0 | J7: =IF($D7>0,F7/$D7,0) -> 0 | K7: =IF($D7>0,G7/$D7,0) -> 0 | L7: =SUM(I7:K7) -> 0
A8: CA | B8: CIRCUIT CIVIL | H8: 0 | I8: =IF($D8>0,E8/$D8,0) -> 0 | J8: 0 | K8: 0 | L8: =SUM(I8:K8) -> 0
A9: SC | B9: COUNTY CIVIL SMALL CLAIMS | H9: 0 | I9: 0 | J9: 0 | K9: 0 | L9: 0
A10: DR | B10: CIRCUIT CIVIL FAMILY | H10: 0 | I10: 0 | J10: 0 | K10: 0 | L10: 0
A11: CP | B11: CIRCUIT CIVIL PROBATE | H11: 0 | I11: 0 | J11: 0 | K11: 0 | L11: 0
A12: GA | B12: CIRCUIT CIVIL GUARDIANSHIP | H12: 0 | I12: 0 | J12: 0 | K12: 0 | L12: 0
A13: MH | B13: CIRCUIT CIVIL MENTAL HEALTH | H13: 0 | I13: 0 | J13: 0 | K13: 0 | L13: 0
A14: CC | B14: COUNTY CIVIL | H14: 0 | I14: 0 | J14: 0 | K14: 0 | L14: 0
A15: DP | B15: CIRCUIT JUVENILE DEPENDENCY | H15: 0 | I15: 0 | J15: 0 | K15: 0 | L15: 0
A16: TOTAL OF CIVIL DOCUMENTS | D16: =SUM(D7:D15) -> 0 | E16: =SUM(E7:E15) -> 0 | F16: =SUM(F7:F15) -> 0 | G16: =SUM(G7:G15) -> 0 | H16: 0 | I16: =IF($D16>0,E16/$D16,0) -> 0 | J16: =IF($D16>0,F16/$D16,0) -> 0 | K16: =IF($D16>0,G16/$D16,0) -> 0 | L16: 0
A17: .
A18: CJ | B18: CIRCUIT JUVENILE DELINQUENCY | H18: 0 | I18: =IF($D18>0,E18/$D18,0) -> 0 | J18: 0 | K18: 0 | L18: 0
A19: CF | B19: CIRCUIT CRIMINAL FELONY | H19: 0 | I19: 0 | J19: 0 | K19: 0 | L19: 0
A20: MM | B20: COUNTY CRIMINAL MISDEMEANOR | H20: 0 | I20: 0 | J20: 0 | K20: 0 | L20: 0
A21: CO | B21: COUNTY ORDINANCE | H21: 0 | I21: 0 | J21: 0 | K21: 0 | L21: 0
A22: MO | B22: COUNTY COURT MUNICIPAL ORDINANCE | H22: 0 | I22: 0 | J22: 0 | K22: 0 | L22: 0
A23: IN | B23: COUNTY COURT INFRACTIONS | H23: 0 | I23: 0 | J23: 0 | K23: 0 | L23: 0
A24: CT | B24: COUNTY CRIMINAL TRAFFIC | H24: 0 | I24: 0 | J24: 0 | K24: 0 | L24: 0
A25: TOTAL OF CRIMINAL DOCUMENTS | D25: =SUM(D18:D24) -> 0 | E25: =SUM(E18:E24) -> 0 | F25: =SUM(F18:F24) -> 0 | G25: =SUM(G18:G24) -> 0 | H25: =SUM(E25:G25) -> 0 | I25: =IF($D25>0,E25/$D25,0) -> 0 | J25: 0 | K25: 0 | L25: =IF(G25>0,H25/$D25,0) -> 0
A27: TR | B27: COUNTY CIVIL TRAFFIC | H27: =SUM(E27:G27) -> 0 | I27: =IF($D27>0,E27/$D27,0) -> 0 | J27: =IF($D27>0,F27/$D27,0) -> 0 | K27: 0 | L27: 0
A29: TOTAL ALL COURT DOCUMENTS | D29: =D16+D25+D27 -> 0 | E29: =E16+E25+E27 -> 0 | F29: =F16+F25+F27 -> 0 | G29: =G16+G25+G27 -> 0 | H29: =SUM(E29:G29) -> 0 | I29: =IF($D29>0,E29/$D29,0) -> 0 | J29: =IF($D29>0,F29/$D29,0) -> 0 | K29: 0 | L29: 0

Sheet SUMMARY
A1: CLERK OF THE COURTS | O1: 2018
A2: BREVARD COUNTY, FLORIDA
A3: ="Document Source Statistics January 1, "&yr&" - December 31, "&yr -> Document Source Statistics January 1, 2018 - December 31, 2018
A4: Number of Documents Filed by Case Category
A6: Case | B6: Category | D6: Total # of Documents Filed | E6: Documents Filed InCourt | F6: Documents Filed Informix | G6: Documents e-Filed | H6: Total Docs Auto-Docketed | I6: % of TOTAL InCourt | J6: % of TOTAL Informix | K6: % of TOTAL e-Filed | L6: Total % of Documents Auto Docketed
A7: AP | B7: APPEALS | D7: =SUM(JAN:DEC!D7) -> 321 | E7: =SUM(JAN:DEC!E7) -> 0 | F7: =SUM(JAN:DEC!F7) -> 0 | G7: =SUM(JAN:DEC!G7) -> 224 | H7: =E7+F7+G7 -> 224 | I7: =IF($D7>0,E7/$D7,0) -> 0 | J7: =IF($D7>0,F7/$D7,0) -> 0 | K7: =IF($D7>0,G7/$D7,0) -> 0.6978193146 | L7: =SUM(I7:K7) -> 0.6978193146
A8: CA | B8: CIRCUIT CIVIL | D8: =SUM(JAN:DEC!D8) -> 66566 | E8: =SUM(JAN:DEC!E8) -> 0 | F8: =SUM(JAN:DEC!F8) -> 1 | G8: =SUM(JAN:DEC!G8) -> 55909 | H8: =E8+F8+G8 -> 55910 | I8: =IF($D8>0,E8/$D8,0) -> 0 | J8: 1.502268425e-05 | K8: 0.8399032539 | L8: =SUM(I8:K8) -> 0.8399182766
A9: SC | B9: COUNTY CIVIL SMALL CLAIMS | D9: =SUM(JAN:DEC!D9) -> 19452 | E9: =SUM(JAN:DEC!E9) -> 0 | F9: =SUM(JAN:DEC!F9) -> 0 | G9: =SUM(JAN:DEC!G9) -> 15152 | H9: 15152 | I9: 0 | J9: 0 | K9: 0.7789430393 | L9: 0.7789430393
A10: DR | B10: CIRCUIT CIVIL FAMILY | D10: =SUM(JAN:DEC!D10) -> 64885 | E10: =SUM(JAN:DEC!E10) -> 0 | F10: =SUM(JAN:DEC!F10) -> 0 | G10: =SUM(JAN:DEC!G10) -> 33584 | H10: 33584 | I10: 0 | J10: 0 | K10: 0.5175926639 | L10: 0.5175926639
A11: CP | B11: CIRCUIT CIVIL PROBATE | D11: =SUM(JAN:DEC!D11) -> 18062 | E11: =SUM(JAN:DEC!E11) -> 0 | F11: =SUM(JAN:DEC!F11) -> 0 | G11: =SUM(JAN:DEC!G11) -> 15236 | H11: 15236 | I11: 0 | J11: 0 | K11: 0.8435389215 | L11: 0.8435389215
A12: GA | B12: CIRCUIT CIVIL GUARDIANSHIP | D12: =SUM(JAN:DEC!D12) -> 7439 | E12: =SUM(JAN:DEC!E12) -> 0 | F12: =SUM(JAN:DEC!F12) -> 0 | G12: =SUM(JAN:DEC!G12) -> 7203 | H12: 7203 | I12: 0 | J12: 0 | K12: 0.9682753058 | L12: 0.9682753058
A13: MH | B13: CIRCUIT CIVIL MENTAL HEALTH | D13: =SUM(JAN:DEC!D13) -> 3140 | E13: =SUM(JAN:DEC!E13) -> 0 | F13: =SUM(JAN:DEC!F13) -> 0 | G13: =SUM(JAN:DEC!G13) -> 2119 | H13: 2119 | I13: 0 | J13: 0 | K13: 0.6748407643 | L13: 0.6748407643
A14: CC | B14: COUNTY CIVIL | D14: =SUM(JAN:DEC!D14) -> 22214 | E14: =SUM(JAN:DEC!E14) -> 0 | F14: =SUM(JAN:DEC!F14) -> 0 | G14: =SUM(JAN:DEC!G14) -> 15103 | H14: 15103 | I14: 0 | J14: 0 | K14: 0.679886558 | L14: 0.679886558
A15: DP | B15: CIRCUIT JUVENILE DEPENDENCY | D15: =SUM(JAN:DEC!D15) -> 9683 | E15: =SUM(JAN:DEC!E15) -> 0 | F15: =SUM(JAN:DEC!F15) -> 1 | G15: =SUM(JAN:DEC!G15) -> 7521 | H15: 7522 | I15: 0 | J15: 0.0001032737788 | K15: 0.7767220903 | L15: 0.776825364
A16: TOTAL OF CIVIL DOCUMENTS | D16: =SUM(D7:D15) -> 211762 | E16: =SUM(E7:E15) -> 0 | F16: =SUM(F7:F15) -> 2 | G16: =SUM(G7:G15) -> 152051 | H16: =SUM(H7:H15) -> 152053 | I16: =IF($D16>0,E16/$D16,0) -> 0 | J16: =IF($D16>0,F16/$D16,0) -> 9.444565125e-06 | K16: =IF($D16>0,G16/$D16,0) -> 0.7180277859 | L16: 0.7180372305
A18: CJ | B18: CIRCUIT JUVENILE DELINQUENCY | D18: =SUM(JAN:DEC!D18) -> 24402 | E18: =SUM(JAN:DEC!E18) -> 14992 | F18: =SUM(JAN:DEC!F18) -> 16 | G18: =SUM(JAN:DEC!G18) -> 4986 | H18: =SUM(JAN:DEC!H18) -> 4986 | I18: =IF($D18>0,E18/$D18,0) -> 0.6143758708 | J18: 0.0006556839603 | K18: 0.2043275141 | L18: =SUM(I18:K18) -> 0.8193590689
A19: CF | B19: CIRCUIT CRIMINAL FELONY | D19: =SUM(JAN:DEC!D19) -> 129463 | E19: =SUM(JAN:DEC!E19) -> 38661 | F19: =SUM(JAN:DEC!F19) -> 1915 | G19: =SUM(JAN:DEC!G19) -> 32183 | H19: =SUM(JAN:DEC!H19) -> 32183 | I19: 0.2986258622 | J19: 0.01479187104 | K19: 0.2485883998 | L19: 0.562006133
A20: MM | B20: COUNTY CRIMINAL MISDEMEANOR | D20: =SUM(JAN:DEC!D20) -> 56731 | E20: =SUM(JAN:DEC!E20) -> 24093 | F20: =SUM(JAN:DEC!F20) -> 677 | G20: =SUM(JAN:DEC!G20) -> 9152 | H20: =SUM(JAN:DEC!H20) -> 9152 | I20: 0.4246884419 | J20: 0.01193351078 | K20: 0.1613227336 | L20: 0.5979446863
A21: CO | B21: COUNTY ORDINANCE | D21: =SUM(JAN:DEC!D21) -> 231 | E21: =SUM(JAN:DEC!E21) -> 81 | F21: =SUM(JAN:DEC!F21) -> 2 | G21: =SUM(JAN:DEC!G21) -> 17 | H21: =SUM(JAN:DEC!H21) -> 17 | I21: 0.3506493506 | J21: 0.008658008658 | K21: 0.07359307359 | L21: 0.4329004329
A22: MO | B22: COUNTY COURT MUNICIPAL ORDINANCE | D22: =SUM(JAN:DEC!D22) -> 394 | E22: =SUM(JAN:DEC!E22) -> 115 | F22: =SUM(JAN:DEC!F22) -> 24 | G22: =SUM(JAN:DEC!G22) -> 53 | H22: =SUM(JAN:DEC!H22) -> 53 | I22: 0.2918781726 | J22: 0.06091370558 | K22: 0.1345177665 | L22: 0.4873096447
A23: IN | B23: COUNTY COURT INFRACTIONS | D23: =SUM(JAN:DEC!D23) -> 2825 | E23: =SUM(JAN:DEC!E23) -> 166 | F23: =SUM(JAN:DEC!F23) -> 0 | G23: =SUM(JAN:DEC!G23) -> 13 | H23: =SUM(JAN:DEC!H23) -> 13 | I23: 0.05876106195 | J23: 0 | K23: 0.004601769912 | L23: 0.06336283186
A24: CT | B24: COUNTY CRIMINAL TRAFFIC | D24: =SUM(JAN:DEC!D24) -> 54013 | E24: =SUM(JAN:DEC!E24) -> 25512 | F24: =SUM(JAN:DEC!F24) -> 1691 | G24: =SUM(JAN:DEC!G24) -> 6975 | H24: =SUM(JAN:DEC!H24) -> 6975 | I24: 0.4723307352 | J24: 0.03130727788 | K24: 0.1291355785 | L24: 0.6327735915
A25: TOTAL OF CRIMINAL DOCUMENTS | D25: =SUM(D18:D24) -> 268059 | E25: =SUM(E18:E24) -> 103620 | F25: =SUM(F18:F24) -> 4325 | G25: 53379 | H25: 53379 | I25: =IF($D25>0,E25/$D25,0) -> 0.3865566909 | J25: 0.0161345077 | K25: 0.1991315345 | L25: =IF(G25>0,H25/$D25,0) -> 0.1991315345
A27: TR | B27: COUNTY CIVIL TRAFFIC | D27: =SUM(JAN:DEC!D27) -> 52924 | E27: =SUM(JAN:DEC!E27) -> 6006 | F27: =SUM(JAN:DEC!F27) -> 13550 | G27: =SUM(JAN:DEC!G27) -> 1556 | H27: =SUM(E27:G27) -> 21112 | I27: =IF($D27>0,E27/$D27,0) -> 0.1134834858 | J27: =IF($D27>0,F27/$D27,0) -> 0.2560275111 | K27: 0.02940064999 | L27: 0.3989116469
A29: TOTAL ALL COURT DOCUMENTS | D29: =D16+D25+D27 -> 532745 | E29: =E16+E25+E27 -> 109626 | F29: =F16+F25+F27 -> 17877 | G29: =G16+G25+G27 -> 206986 | H29: =SUM(E29:G29) -> 334489 | I29: =IF($D29>0,E29/$D29,0) -> 0.2057757464 | J29: =IF($D29>0,F29/$D29,0) -> 0.03355639189 | K29: 0.3885273442 | L29: 0.6278594825
